bitfinex/quotes_BTCUSD_20230120
["timestamp","ask_amount","ask_price","bid_price","bid_amount"]
[1674223001981,0.02954731,21057.0,21056.0,1.59624416]
[1674223002523,0.02948434,21057.0,21056.0,1.59624416]
[1674223003819,0.02948434,21057.0,21056.0,1.14624416]
[1674223004608,0.02948434,21057.0,21056.0,1.29624416]
[1674223004875,0.02948434,21057.0,21056.0,1.14624416]
[1674223005434,0.02948434,21057.0,21056.0,1.06583416]
[1674223007184,0.02948434,21057.0,21056.0,0.0345]
[1674223007185,0.36006887,21057.0,21056.0,0.0345]
[1674223007455,0.36006887,21057.0,21056.0,0.026]
[1674223008005,0.51006887,21057.0,21056.0,0.026]
[1674223008277,0.51006887,21057.0,21054.0,0.474963]
[1674223008554,0.35406887,21057.0,21054.0,0.469963]
[1674223008806,0.42106887,21057.0,21056.0,0.002]
[1674223009075,0.09048434,21057.0,21056.0,0.002]
[1674223009925,0.50419254,21057.0,21056.0,0.002]
[1674223010209,0.50419254,21057.0,21054.0,0.4585]
[1674223010468,0.50419254,21057.0,21054.0,0.4605]
[1674223010760,0.43719254,21057.0,21054.0,0.4585]
[1674223011031,0.50419254,21057.0,21056.0,0.002]
[1674223011295,0.53154427,21057.0,21054.0,0.4585]
[1674223011567,0.59854427,21057.0,21054.0,0.4605]
[1674223012310,0.59854427,21057.0,21054.0,0.94026813]
[1674223012589,0.35775271,21056.0,21054.0,0.94027313]
[1674223012854,0.35775271,21056.0,21054.0,0.79027313]
[1674223013921,0.35775271,21056.0,21054.0,0.78827313]
[1674223014185,0.42475271,21056.0,21054.0,0.79127313]
[1674223015500,0.42475271,21056.0,21054.0,0.79126813]
[1674223016312,0.067,21056.0,21055.0,0.08541245]
[1674223016576,0.067,21056.0,21055.0,0.23541245]
[1674223016840,0.067,21056.0,21055.0,0.53541245]
[1674223017574,0.02348434,21057.0,21055.0,0.53541245]
[1674223017619,0.02348434,21057.0,21055.0,1.01035845]
[1674223017856,0.067,21056.0,21055.0,1.60070081]
[1674223018116,0.067,21056.0,21055.0,2.5504987]
[1674223018366,0.02348434,21057.0,21056.0,0.15]
[1674223018640,0.09048434,21057.0,21056.0,1.408348]
[1674223018881,0.09048434,21057.0,21056.0,1.258348]
[1674223019394,0.09048434,21057.0,21056.0,0.958348]
[1674223019646,0.02348434,21057.0,21056.0,0.958348]
[1674223020426,0.09048434,21057.0,21056.0,1.260348]
[1674223020680,0.09048434,21057.0,21056.0,0.785424]
[1674223020943,0.4482803,21057.0,21056.0,0.485424]
[1674223023247,0.09048434,21057.0,21056.0,0.49027785]
[1674223023504,0.09048434,21057.0,21056.0,0.79027785]
[1674223024037,0.09048434,21057.0,21056.0,1.26520185]
[1674223027248,0.09048434,21057.0,21056.0,1.37859821]
[1674223027513,0.09048434,21057.0,21056.0,2.32837681]
[1674223028255,0.09048434,21057.0,21056.0,1.26520185]
[1674223028785,0.09048434,21057.0,21056.0,2.32838937]
[1674223029629,0.09048434,21057.0,21056.0,1.37859821]
[1674223029899,0.09048434,21057.0,21056.0,1.26520185]
[1674223030996,0.09048434,21057.0,21056.0,2.32838765]
[1674223031272,0.09048434,21057.0,21056.0,2.49909946]
[1674223031535,0.09041112,21057.0,21056.0,2.49909946]
[1674223032080,0.09041112,21057.0,21056.0,1.26520185]
[1674223032344,0.09041112,21057.0,21056.0,1.37859821]
[1674223032793,0.09041112,21057.0,21056.0,2.3283965]
[1674223033276,0.09041112,21057.0,21056.0,2.32840098]
[1674223033553,0.09041112,21057.0,21056.0,1.26520185]
[1674223033818,0.09041112,21057.0,21056.0,2.32840296]
[1674223034042,0.09041112,21057.0,21056.0,1.26520185]
[1674223037559,0.09041112,21057.0,21056.0,2.32840203]
[1674223037839,0.09041112,21057.0,21056.0,2.82450147]
[1674223038136,0.09041112,21057.0,21056.0,2.57597459]
[1674223038974,0.09041112,21057.0,21056.0,2.90105855]
[1674223039231,0.09041112,21057.0,21056.0,2.78730144]
[1674223039545,0.09041112,21057.0,21056.0,2.90106647]
[1674223040078,0.09041112,21057.0,21056.0,2.57598251]
[1674223040604,0.09041112,21057.0,21056.0,2.90008248]
[1674223040887,0.09041112,21057.0,21056.0,2.40528388]
[1674223041410,0.09041112,21057.0,21056.0,1.26520185]
[1674223041669,0.09041112,21057.0,21056.0,1.37898006]
[1674223041932,0.09041112,21057.0,21056.0,2.32879679]
[1674223042223,0.09041112,21057.0,21056.0,1.26520185]
[1674223044366,0.09041112,21057.0,21056.0,0.96520185]
[1674223044626,0.09041112,21057.0,21056.0,1.26520185]
[1674223045420,0.0983531,21057.0,21056.0,1.26520185]
[1674223046235,0.0983531,21057.0,21056.0,0.96520185]
[1674223046778,0.0983531,21057.0,21056.0,1.26520185]
[1674223047033,0.0983531,21057.0,21056.0,0.96520185]
[1674223047828,0.0983531,21057.0,21056.0,1.26520185]
[1674223048611,0.0983531,21057.0,21056.0,2.3287991]
[1674223049422,0.0983531,21057.0,21056.0,2.49951091]
[1674223049680,0.0983531,21057.0,21056.0,2.3287991]
[1674223050442,0.0983531,21057.0,21056.0,2.49951091]
[1674223050706,0.0983531,21057.0,21056.0,2.82236156]
[1674223051511,0.0983531,21057.0,21056.0,2.3287991]
[1674223052318,0.0983531,21057.0,21056.0,2.49951091]
[1674223052661,0.0983531,21057.0,21056.0,2.70861716]
[1674223053024,0.0983531,21057.0,21056.0,2.49954185]
[1674223053025,0.0983531,21057.0,21056.0,2.82242751]
[1674223053488,0.0983531,21057.0,21056.0,2.82222973]
[1674223053633,0.0983531,21057.0,21056.0,2.82223026]
[1674223053874,0.09824429,21057.0,21056.0,2.82222793]
[1674223054091,0.09824429,21057.0,21056.0,2.40841878]
[1674223054342,0.09824429,21057.0,21056.0,2.02883273]
[1674223055311,0.09824429,21057.0,21056.0,0.96520185]
[1674223055544,0.09824429,21057.0,21056.0,2.32884618]
[1674223057500,0.09824429,21057.0,21056.0,2.49955799]
[1674223057772,0.09824429,21057.0,21056.0,2.32884618]
[1674223059330,0.09824429,21057.0,21056.0,2.70863134]
[1674223060608,0.09824429,21057.0,21056.0,3.04970971]
[1674223061348,0.09824429,21057.0,21056.0,2.82224741]
[1674223062282,0.09824429,21057.0,21056.0,3.04995001]
[1674223063525,0.09824429,21057.0,21056.0,2.82224741]
[1674223064075,0.00522026,21061.0,21057.0,0.17251007]
[1674223064321,0.00522026,21061.0,21060.0,0.19053037]
[1674223064567,0.00522026,21061.0,21060.0,2.75509538]
[1674223064817,0.00522026,21061.0,21060.0,2.88410988]
[1674223065075,0.00522026,21061.0,21060.0,1.334866]
[1674223065560,0.00522026,21061.0,21060.0,2.49032322]
[1674223065810,0.00522026,21061.0,21060.0,2.37651196]
[1674223066061,0.00522026,21061.0,21060.0,2.49034253]
[1674223066831,0.00522026,21061.0,21060.0,1.426866]
[1674223067084,0.00522026,21061.0,21060.0,2.37651224]
[1674223067343,0.00522026,21061.0,21060.0,1.426866]
[1674223067590,0.00522026,21061.0,21060.0,1.43166956]
[1674223067859,0.00522026,21061.0,21060.0,2.49512286]
[1674223068124,0.00522026,21061.0,21060.0,2.86644434]
[1674223068351,0.00522026,21061.0,21060.0,2.49503888]
[1674223069113,0.00522026,21061.0,21060.0,1.43166956]
[1674223069371,0.00522026,21061.0,21060.0,2.48503875]
[1674223071116,0.00522026,21061.0,21060.0,2.48502154]
[1674223072122,0.00522026,21061.0,21060.0,1.42166956]
[1674223073629,0.00522026,21061.0,21060.0,2.65575733]
[1674223073899,0.00522026,21061.0,21060.0,2.90342961]
[1674223074116,0.00522026,21061.0,21060.0,2.41831178]
[1674223074835,0.00522026,21061.0,21060.0,1.46871595]
[1674223075087,0.00522026,21061.0,21060.0,1.35496956]
[1674223079565,0.00522026,21061.0,21060.0,1.05496956]
[1674223080089,0.08474026,21061.0,21060.0,0.09680356]
[1674223080324,0.00522026,21061.0,21060.0,0.09680356]
[1674223081079,0.08474026,21061.0,21060.0,0.092]
[1674223081337,0.00522026,21061.0,21060.0,0.092]
[1674223081857,0.00522026,21061.0,21060.0,0.242]
[1674223082354,0.00522026,21061.0,21060.0,1.191666]
[1674223082603,0.00522026,21061.0,21060.0,0.716833]
[1674223083331,0.00522026,21061.0,21060.0,0.5468123]
[1674223083840,0.00522026,21061.0,21060.0,0.2468123]
[1674223084133,0.00522026,21061.0,21060.0,0.5468123]
[1674223084396,0.00522026,21061.0,21060.0,0.2468123]
[1674223084891,0.00522026,21061.0,21060.0,1.0216453]
[1674223085134,0.00522026,21061.0,21060.0,1.5049783]
[1674223093778,0.00511206,21061.0,21060.0,1.5049783]
[1674223095104,0.00511206,21061.0,21060.0,1.3549783]
[1674223098611,0.00511206,21061.0,21060.0,3.01124762]
[1674223099437,0.00511206,21061.0,21060.0,3.59999497]
[1674223099691,0.00511206,21061.0,21060.0,3.71259497]
[1674223100999,0.00511206,21061.0,21060.0,4.03889779]
[1674223101569,0.00511206,21061.0,21060.0,4.15272816]
[1674223101865,0.00511206,21061.0,21060.0,3.54184942]
[1674223102175,0.00511206,21061.0,21060.0,3.71239595]
[1674223102435,0.00511206,21061.0,21060.0,3.48473521]
[1674223102699,0.00511206,21061.0,21060.0,3.60069595]
[1674223102969,0.00511206,21061.0,21060.0,3.37303521]
[1674223105261,0.00511206,21061.0,21060.0,3.60069595]
[1674223105787,0.00511206,21061.0,21060.0,3.71472534]
[1674223106336,0.00511206,21061.0,21060.0,3.43014942]
[1674223106861,0.00511206,21061.0,21060.0,3.71472534]
[1674223107673,0.00511206,21061.0,21060.0,3.4870646]
[1674223108464,0.00511206,21061.0,21060.0,3.71462087]
[1674223109265,0.00511206,21061.0,21060.0,3.4870646]
[1674223109789,0.00511206,21061.0,21060.0,3.20248868]
[1674223110590,0.00511206,21061.0,21060.0,3.19767638]
[1674223111133,0.00511206,21061.0,21060.0,3.20253817]
[1674223111884,0.00522026,21062.0,21061.0,0.15582798]
[1674223112144,0.00522026,21062.0,21061.0,3.16026018]
[1674223113710,0.00522026,21062.0,21061.0,3.25226018]
[1674223114233,0.00522026,21062.0,21061.0,4.23930737]
[1674223114477,0.00522026,21062.0,21061.0,4.23910962]
[1674223114737,0.00522026,21062.0,21061.0,3.47626018]
[1674223115304,0.00522026,21062.0,21061.0,4.14711179]
[1674223115542,0.00522026,21062.0,21061.0,4.28206784]
[1674223115790,0.00522026,21064.0,21062.0,0.15055348]
[1674223116056,0.00522026,21064.0,21063.0,3.34337661]
[1674223116319,0.00522026,21064.0,21063.0,4.35074944]
[1674223117071,0.00522026,21064.0,21063.0,4.1794742]
[1674223117885,0.00522026,21064.0,21063.0,4.46352879]
[1674223118097,0.00522026,21064.0,21063.0,4.46352856]
[1674223118348,0.00522026,21064.0,21063.0,4.4633989]
[1674223118608,0.00522026,21064.0,21063.0,4.78354215]
[1674223119436,0.00522026,21064.0,21063.0,4.49961745]
[1674223119670,0.00522026,21064.0,21063.0,4.78354215]
[1674223120200,0.00522026,21064.0,21063.0,4.66996812]
[1674223120497,0.00522026,21064.0,21063.0,4.78354215]
[1674223121007,0.00522026,21064.0,21063.0,4.5563989]
[1674223121810,0.00522026,21064.0,21063.0,4.78346962]
[1674223123315,0.00522026,21064.0,21063.0,4.5563989]
[1674223123575,0.00522026,21064.0,21063.0,4.78340686]
[1674223124115,0.00522026,21064.0,21063.0,4.66973993]
[1674223124368,0.00522026,21064.0,21063.0,4.49948216]
[1674223124644,0.00522026,21064.0,21063.0,4.34341006]
[1674223124891,0.00522026,21064.0,21063.0,3.92432062]
[1674223125145,0.00522026,21064.0,21063.0,3.91939536]
[1674223125406,0.00522026,21064.0,21063.0,3.74916464]
[1674223125750,0.00522026,21064.0,21063.0,2.79958485]
[1674223125949,0.00522026,21064.0,21063.0,3.80570941]
[1674223126193,0.00522026,21064.0,21063.0,2.799584]
[1674223126453,0.00522026,21064.0,21063.0,3.74897189]
[1674223126711,0.00522026,21064.0,21063.0,2.799584]
[1674223126988,0.00522026,21064.0,21063.0,2.80440639]
[1674223127260,0.00522026,21064.0,21063.0,2.72488639]
[1674223127509,0.00522026,21064.0,21063.0,2.31139639]
[1674223128919,0.00522026,21064.0,21063.0,2.61139639]
[1674223131096,0.00522026,21064.0,21063.0,1.53062039]
[1674223131356,0.00522026,21064.0,21063.0,1.52212039]
[1674223132142,0.43985122,21064.0,21063.0,0.567766]
[1674223132434,0.43985122,21064.0,21063.0,0.093]
[1674223132695,0.55265122,21064.0,21063.0,0.093]
[1674223133219,0.87997522,21064.0,21063.0,0.093]
[1674223133477,0.55265122,21064.0,21062.0,0.00055348]
[1674223133994,0.55265122,21064.0,21062.0,0.00548873]
[1674223134271,0.1128,21063.0,21062.0,0.00055348]
[1674223134799,0.50809641,21063.0,21062.0,0.00055348]
[1674223135061,0.50809641,21063.0,21062.0,0.09505348]
[1674223135324,0.50809641,21063.0,21062.0,0.00905348]
[1674223135577,0.50809641,21063.0,21062.0,0.05105348]
[1674223135822,0.50809641,21063.0,21062.0,0.00905348]
[1674223136083,0.50909641,21063.0,21062.0,0.09505348]
[1674223136329,0.50809641,21063.0,21062.0,0.00905348]
[1674223136563,0.50809641,21063.0,21062.0,0.05105348]
[1674223137617,0.50809641,21063.0,21062.0,0.00905348]
[1674223137848,0.50809641,21063.0,21062.0,0.05105348]
[1674223138357,0.50809641,21063.0,21062.0,0.48384148]
[1674223138626,0.50809641,21063.0,21062.0,0.82584148]
[1674223139189,0.50809641,21063.0,21062.0,0.97584148]
[1674223139455,0.39529641,21063.0,21062.0,0.50105348]
[1674223140013,0.00522026,21064.0,21062.0,0.50105348]
[1674223140558,0.00522026,21064.0,21063.0,0.3]
[1674223140828,0.00522026,21064.0,21063.0,0.783266]
[1674223141357,0.00522026,21064.0,21063.0,0.933266]
[1674223141848,0.01322026,21064.0,21063.0,0.934266]
[1674223143707,0.01322026,21064.0,21063.0,0.9392496]
[1674223143937,0.01322026,21064.0,21063.0,1.0527396]
[1674223144471,0.01322026,21064.0,21063.0,0.9392496]
[1674223144731,0.01322026,21064.0,21063.0,1.4140156]
[1674223145837,0.01322026,21064.0,21063.0,1.634222]
[1674223146098,0.00535739,21066.0,21064.0,0.15632805]
[1674223146355,0.00535739,21066.0,21065.0,0.957942]
[1674223146620,0.00535739,21066.0,21065.0,1.407942]
[1674223147984,0.00535739,21066.0,21065.0,2.5638646]
[1674223148285,0.00535739,21066.0,21065.0,2.56884431]
[1674223148550,0.00535739,21066.0,21065.0,1.50592171]
[1674223148817,0.00535739,21066.0,21065.0,1.35592171]
[1674223149345,0.00535739,21066.0,21065.0,2.30525872]
[1674223149852,0.00535739,21066.0,21065.0,2.88282955]
[1674223149853,0.00535739,21066.0,21065.0,2.88766577]
[1674223150117,0.00535739,21066.0,21065.0,2.88282955]
[1674223150635,0.00535739,21066.0,21065.0,2.99472955]
[1674223150857,0.00535739,21066.0,21065.0,2.88114423]
[1674223151120,0.00535739,21066.0,21065.0,2.99471998]
[1674223151386,0.00535739,21066.0,21065.0,2.99962757]
[1674223151644,0.00535739,21066.0,21065.0,2.99963821]
[1674223151916,0.00535739,21066.0,21065.0,2.9996312]
[1674223152210,0.00535739,21066.0,21065.0,2.53065534]
[1674223152475,0.00535739,21066.0,21065.0,2.70103527]
[1674223153023,0.00535739,21066.0,21065.0,2.53065534]
[1674223153559,0.00535739,21066.0,21065.0,2.70103527]
[1674223153792,0.00535739,21066.0,21065.0,3.00037182]
[1674223154052,0.00535739,21066.0,21065.0,2.53065987]
[1674223154876,0.00535739,21066.0,21065.0,1.58132286]
[1674223155135,0.00535739,21066.0,21065.0,2.53065579]
[1674223155398,0.00535739,21066.0,21065.0,3.00038141]
[1674223155663,0.00535739,21066.0,21065.0,2.70103572]
[1674223155896,0.00535739,21066.0,21065.0,3.00037136]
[1674223156238,0.00535739,21066.0,21065.0,2.88679809]
[1674223156685,0.00535739,21066.0,21065.0,3.00037572]
[1674223157543,0.42951988,21070.0,21066.0,0.15]
[1674223157805,0.42951988,21070.0,21067.0,0.957842]
[1674223158079,0.42951988,21070.0,21068.0,0.3]
[1674223158338,0.84213582,21070.0,21068.0,0.3]
[1674223158598,0.84213582,21070.0,21068.0,0.47465]
[1674223158864,0.41703582,21070.0,21068.0,0.77465]
[1674223159121,0.41703582,21070.0,21068.0,1.25879062]
[1674223159381,0.00441988,21070.0,21069.0,0.00852458]
[1674223159644,0.00441988,21070.0,21069.0,0.48315458]
[1674223159912,0.00441988,21070.0,21067.0,0.67747897]
[1674223160217,0.42961951,21069.0,21067.0,0.49115342]
[1674223160493,0.00441988,21070.0,21067.0,0.96582942]
[1674223160761,0.00441988,21070.0,21069.0,0.006]
[1674223161036,0.00441988,21070.0,21068.0,0.78295051]
[1674223161301,0.00441988,21070.0,21068.0,1.25758751]
[1674223161839,0.00441988,21070.0,21069.0,0.006]
[1674223162093,0.00441988,21070.0,21069.0,0.48063]
[1674223162347,0.00441988,21070.0,21069.0,0.48856328]
[1674223162950,0.00441988,21070.0,21069.0,0.79706328]
[1674223163093,0.00441988,21070.0,21069.0,0.49706328]
[1674223163317,0.00441988,21070.0,21069.0,0.79106328]
[1674223163626,0.00441988,21070.0,21069.0,1.26569328]
[1674223164168,0.00441988,21070.0,21069.0,1.27169328]
[1674223165526,0.00441988,21070.0,21069.0,0.97169328]
[1674223165713,0.00441988,21070.0,21069.0,0.49706328]
[1674223165975,0.00441988,21070.0,21069.0,0.79706328]
[1674223166759,0.00441988,21070.0,21069.0,0.48913]
[1674223167818,0.36608125,21070.0,21069.0,0.48913]
[1674223168133,0.59138125,21070.0,21069.0,0.0145]
[1674223168392,0.92654725,21070.0,21069.0,0.0145]
[1674223168676,0.92654725,21070.0,21069.0,0.006]
[1674223168957,1.07654725,21070.0,21069.0,0.006]
[1674223170049,1.55115525,21070.0,21069.0,0.006]
[1674223170307,1.07654725,21070.0,21069.0,0.006]
[1674223170581,1.55115525,21070.0,21069.0,0.006]
[1674223171936,2.02576325,21070.0,21069.0,0.006]
[1674223172247,1.18949388,21070.0,21069.0,0.006]
[1674223172505,1.62832701,21070.0,21069.0,0.006]
[1674223172761,1.65748153,21070.0,21069.0,0.006]
[1674223173024,1.18287353,21070.0,21069.0,0.006]
[1674223173311,1.65748153,21070.0,21069.0,0.006]
[1674223174617,1.18949388,21070.0,21069.0,0.006]
[1674223174876,1.58086794,21070.0,21069.0,0.006]
[1674223177876,0.71488588,21070.0,21069.0,0.006]
[1674223178136,2.1027014,21070.0,21069.0,0.006]
[1674223178671,2.102731,21070.0,21069.0,0.006]
[1674223179273,2.102731,21070.0,21069.0,0.0058985]
[1674223179794,1.77690188,21070.0,21069.0,0.0058985]
[1674223181313,2.1027624,21070.0,21069.0,0.0058985]
[1674223181615,1.77690188,21070.0,21069.0,0.0058985]
[1674223182108,3.51931035,21070.0,21069.0,0.0058985]
[1674223182362,5.01896613,21070.0,21069.0,0.0058985]
[1674223182616,5.97070052,21070.0,21069.0,0.0058985]
[1674223182966,5.74490746,21070.0,21069.0,0.0042985]
[1674223183163,0.00023511,21068.0,21062.0,0.00723681]
[1674223183419,0.1118,21063.0,21062.0,0.00723681]
[1674223183684,0.51260397,21063.0,21062.0,0.00723681]
[1674223183943,0.430283,21063.0,21062.0,0.00723681]
[1674223184239,0.1118,21063.0,21062.0,0.00723681]
[1674223184971,0.1118,21063.0,21061.0,0.3]
[1674223185225,0.1127,21062.0,21061.0,0.3]
[1674223185511,0.1127,21062.0,21061.0,0.0085]
[1674223185748,0.421806,21062.0,21061.0,0.0085]
[1674223186007,0.446943,21062.0,21061.0,0.0085]
[1674223186555,0.453091,21062.0,21061.0,0.0085]
[1674223187378,0.1227,21062.0,21061.0,0.0085]
[1674223191508,0.45132,21062.0,21061.0,0.0085]
[1674223191784,0.60132,21062.0,21061.0,0.0085]
[1674223192326,0.72804275,21062.0,21060.0,0.01210401]
[1674223192871,0.77311119,21061.0,21060.0,0.01210401]
[1674223193130,0.78498919,21061.0,21060.0,0.02060401]
[1674223193556,0.44710819,21061.0,21060.0,0.02060401]
[1674223194010,0.55960819,21061.0,21060.0,0.02060401]
[1674223194225,0.56860819,21061.0,21060.0,0.02060401]
[1674223195704,0.12177391,21061.0,21060.0,0.02060401]
[1674223196404,0.12177391,21061.0,21060.0,0.02860883]
[1674223196854,0.12177391,21061.0,21060.0,0.50344183]
[1674223197081,0.12177391,21061.0,21060.0,0.80344183]
[1674223197577,0.12177391,21061.0,21060.0,0.79543701]
[1674223199607,0.12177391,21061.0,21060.0,0.49543701]
[1674223199608,0.54576766,21061.0,21060.0,0.49543701]
[1674223200313,0.56467117,21061.0,21060.0,0.02060401]
[1674223200533,0.56467117,21061.0,21060.0,0.32060401]
[1674223200754,0.56467117,21061.0,21060.0,0.02060401]
[1674223202386,0.56467117,21061.0,21060.0,0.32060401]
[1674223202657,0.56467117,21061.0,21060.0,0.02060401]
[1674223202932,0.56467117,21061.0,21060.0,0.49543701]
[1674223203147,0.56467117,21061.0,21060.0,0.01210401]
[1674223205878,0.56456529,21061.0,21060.0,0.01210401]
[1674223206656,0.56456529,21061.0,21060.0,0.48693701]
[1674223206920,0.14057154,21061.0,21060.0,0.79564474]
[1674223207188,0.02817742,21061.0,21060.0,1.27897774]
[1674223215669,0.02817742,21061.0,21060.0,1.39255537]
[1674223215924,0.02817742,21061.0,21060.0,1.27897774]
[1674223217029,0.02817742,21061.0,21060.0,1.27793029]
[1674223217264,0.02817742,21061.0,21060.0,2.34107895]
[1674223218346,0.02817742,21061.0,21060.0,1.39150792]
[1674223218604,0.02817742,21061.0,21060.0,1.27793029]
[1674223219696,0.02817742,21061.0,21060.0,1.39150792]
[1674223219954,0.02817742,21061.0,21060.0,2.34109495]
[1674223220210,0.02817742,21061.0,21060.0,1.39150792]
[1674223221011,0.02817742,21061.0,21060.0,1.27793029]
[1674223223364,0.02817742,21061.0,21060.0,2.34111091]
[1674223224351,0.02817742,21061.0,21060.0,2.81232673]
[1674223224597,0.02817742,21061.0,21060.0,2.81232688]
[1674223224852,0.02817742,21061.0,21060.0,2.51149084]
[1674223225629,0.02817742,21061.0,21060.0,2.92584187]
[1674223225963,0.02817742,21061.0,21060.0,2.0377904]
[1674223226144,0.02817742,21061.0,21060.0,0.79438956]
[1674223226393,0.02817742,21061.0,21060.0,1.26922256]
[1674223226655,0.02817742,21061.0,21060.0,2.33265334]
[1674223227417,0.02817742,21061.0,21060.0,2.50303327]
[1674223227676,0.02817742,21061.0,21060.0,2.80407701]
[1674223228501,0.02817742,21061.0,21060.0,2.20303327]
[1674223228748,0.42722058,21061.0,21060.0,2.03265334]
[1674223228982,0.54002058,21061.0,21060.0,0.96919785]
[1674223229238,0.54002058,21061.0,21060.0,0.01955656]
[1674223229763,0.54002058,21061.0,21060.0,1.08300034]
[1674223230267,0.54002058,21061.0,21060.0,0.01955656]
[1674223238719,0.53992101,21061.0,21060.0,0.01955656]
[1674223245974,0.02807785,21061.0,21060.0,1.44404311]
[1674223246239,0.02807785,21061.0,21060.0,2.64165566]
[1674223246508,0.02807785,21061.0,21060.0,2.51162945]
[1674223246771,0.02807785,21061.0,21060.0,2.69824363]
[1674223247607,0.02807785,21061.0,21060.0,2.44183467]
[1674223247872,0.02807785,21061.0,21060.0,2.80347744]
[1674223248135,0.02807785,21061.0,21060.0,2.80347722]
[1674223248984,0.02807785,21061.0,21060.0,2.50307355]
[1674223249258,0.02807785,21061.0,21060.0,2.80308911]
[1674223249531,0.02807785,21061.0,21060.0,2.32825611]
[1674223249832,0.02807785,21061.0,21060.0,2.50307355]
[1674223250112,0.02807785,21061.0,21060.0,2.02824055]
[1674223250864,0.02807785,21061.0,21060.0,2.80310473]
[1674223252507,0.02807785,21061.0,21060.0,2.20307355]
[1674223252772,0.02807785,21061.0,21060.0,1.55786062]
[1674223253047,0.43577092,21061.0,21060.0,0.13337407]
[1674223253347,0.69857092,21061.0,21060.0,0.01955656]
[1674223253892,1.02164492,21061.0,21060.0,0.01955656]
[1674223254209,0.69857092,21061.0,21060.0,0.01955656]
[1674223255602,1.00759501,21061.0,21060.0,0.01955656]
[1674223255862,0.69829701,21061.0,21060.0,0.01955656]
[1674223256387,1.03434601,21061.0,21060.0,0.01955656]
[1674223256636,0.69829701,21061.0,21060.0,0.01955656]
[1674223256920,1.04506901,21061.0,21060.0,0.01955656]
[1674223257779,0.69829701,21061.0,21060.0,0.01955656]
[1674223259280,1.00486801,21061.0,21060.0,0.01955656]
[1674223259558,0.69829701,21061.0,21060.0,0.01955656]
[1674223259820,1.01555001,21061.0,21060.0,0.01955656]
[1674223260349,0.86555001,21061.0,21060.0,0.01955656]
[1674223260599,0.54829701,21061.0,21060.0,0.01955656]
[1674223261150,0.02780394,21061.0,21060.0,1.4708009]
[1674223261418,0.02780394,21061.0,21060.0,2.22606578]
[1674223261724,0.02768927,21061.0,21060.0,2.69684238]
[1674223261988,0.01268927,21061.0,21060.0,2.81063499]
[1674223262545,0.01268927,21061.0,21060.0,2.92385034]
[1674223262812,0.45042754,21064.0,21060.0,2.92385034]
[1674223263093,0.45042754,21064.0,21061.0,1.54257206]
[1674223263355,0.02057994,21064.0,21062.0,2.31294209]
[1674223263639,0.02057994,21064.0,21063.0,1.26618706]
[1674223263922,0.02057994,21064.0,21063.0,2.49079778]
[1674223264171,0.02057994,21064.0,21063.0,3.02683599]
[1674223264433,0.02057994,21064.0,21063.0,2.9136038]
[1674223264707,0.02057994,21064.0,21063.0,3.02683599]
[1674223264987,0.02857994,21064.0,21063.0,2.92154067]
[1674223265964,0.02857994,21064.0,21063.0,2.50791354]
[1674223266242,0.02857994,21064.0,21063.0,1.27423512]
[1674223266508,0.02857994,21064.0,21063.0,1.25750112]
[1674223269139,0.02857994,21064.0,21063.0,0.95750112]
[1674223269410,0.02857994,21064.0,21063.0,0.02470312]
[1674223269650,0.02857994,21064.0,21063.0,0.97423512]
[1674223269906,0.02857994,21064.0,21063.0,1.27423512]
[1674223273829,0.02857994,21064.0,21063.0,1.27431493]
[1674223274094,0.02857994,21064.0,21063.0,0.79946912]
[1674223275948,0.02857994,21064.0,21063.0,1.27423512]
[1674223277019,0.02857994,21064.0,21063.0,0.79946912]
[1674223278320,0.59898127,21064.0,21063.0,0.0165]
[1674223279130,0.59898127,21064.0,21063.0,0.491266]
[1674223279401,0.59098127,21064.0,21063.0,0.483266]
[1674223279686,0.13337994,21064.0,21063.0,0.483266]
[1674223279959,0.13537994,21064.0,21063.0,0.783266]
[1674223281597,0.13537994,21064.0,21063.0,0.3085]
[1674223281856,0.57788336,21064.0,21063.0,0.783266]
[1674223282386,0.13537994,21064.0,21063.0,1.258032]
[1674223282647,0.02257994,21064.0,21063.0,1.26629771]
[1674223285687,0.02257994,21064.0,21063.0,1.26621557]
[1674223289121,0.02257994,21064.0,21063.0,2.33052715]
[1674223290347,0.02257994,21064.0,21063.0,1.26740722]
[1674223292476,0.02257994,21064.0,21063.0,1.25794986]
[1674223292760,0.002,21064.0,21063.0,1.25794986]
[1674223295659,0.002,21064.0,21063.0,1.26581314]
[1674223296737,0.002,21064.0,21063.0,2.21527473]
[1674223298324,0.002,21064.0,21063.0,2.32898737]
[1674223301382,0.002,21064.0,21063.0,2.79238526]
[1674223301640,0.002,21064.0,21063.0,2.85495186]
[1674223301922,0.99754123,21068.0,21064.0,0.00917143]
[1674223302179,0.99754123,21068.0,21065.0,2.10171456]
[1674223302180,0.45749867,21067.0,21065.0,2.10171456]
[1674223302458,0.45749867,21067.0,21066.0,0.3]
[1674223302724,0.45749867,21067.0,21066.0,0.783198]
[1674223302998,0.45749867,21067.0,21066.0,1.257896]
[1674223304083,0.1125,21069.0,21066.0,1.257896]
[1674223304346,0.1125,21069.0,21067.0,0.0085]
[1674223304671,0.43473512,21068.0,21067.0,0.563585]
[1674223305085,0.43473512,21068.0,21067.0,0.863585]
[1674223305341,0.1125,21069.0,21067.0,0.0085]
[1674223305600,0.1125,21069.0,21067.0,0.965852]
[1674223305601,0.46046429,21068.0,21067.0,0.965852]
[1674223305858,0.46046429,21068.0,21067.0,0.791176]
[1674223306126,0.46046429,21068.0,21067.0,0.783176]
[1674223309758,0.1125,21069.0,21067.0,0.783176]
[1674223310042,0.52855362,21069.0,21068.0,0.3]
[1674223310300,0.52855362,21069.0,21068.0,0.3085]
[1674223311669,0.52855362,21069.0,21068.0,0.3145]
[1674223311929,0.52855362,21069.0,21068.0,0.0145]
[1674223313066,0.67855362,21069.0,21068.0,0.0145]
[1674223313328,0.2625,21069.0,21068.0,0.0145]
[1674223313600,1.01340758,21069.0,21068.0,0.0145]
[1674223317277,0.53545858,21069.0,21068.0,0.0145]
[1674223318062,0.53545858,21069.0,21068.0,0.489153]
[1674223318322,0.53545858,21069.0,21068.0,0.3145]
[1674223318857,0.53545858,21069.0,21068.0,0.0145]
[1674223319140,0.53545858,21069.0,21068.0,0.3145]
[1674223319433,0.53545858,21069.0,21068.0,0.0145]
[1674223319970,0.68545858,21069.0,21068.0,0.0145]
[1674223320239,1.01319458,21069.0,21068.0,0.0145]
[1674223320514,0.53545858,21069.0,21068.0,0.0145]
[1674223321778,0.53545858,21069.0,21068.0,0.3145]
[1674223323129,0.53537242,21069.0,21068.0,0.3145]
[1674223323674,0.11241384,21069.0,21068.0,0.3145]
[1674223324215,0.00441988,21070.0,21068.0,2.22061543]
[1674223324497,0.00441988,21070.0,21069.0,0.16843]
[1674223324773,0.00441988,21070.0,21069.0,1.11769]
[1674223325038,0.44086658,21070.0,21069.0,1.41769]